fUSD/lending_fUSD_20250623
["ID","MTS","AMOUNT","RATE_DAILY","PERIOD"]
[367131837,1750665086228,-490.0,0.00027945,3]
[367131838,1750665086238,-6322.71,0.00027945,3]
[367131839,1750665086247,-956.28,0.00027945,3]
[367131840,1750665086257,-490.0,0.00027945,3]
[367131841,1750665086266,-502.66,0.00027945,3]
[367131842,1750665086276,-490.0,0.00027945,3]
[367131843,1750665086285,-490.0,0.00027945,3]
[367131844,1750665086295,-658.813489,0.00027945,3]
[367131845,1750665086305,-490.0,0.00027945,3]
[367131846,1750665086314,-464.847149,0.00027945,3]
[367131847,1750665086323,-490.0,0.00027945,3]
[367131848,1750665086333,-524.2,0.00027945,3]
[367131849,1750665086342,-151.3,0.00027962,2]
[367131850,1750665086353,-500.0,0.00027964,2]
[367131851,1750665086362,-8152.05788032,0.00028,60]
[367131852,1750665086374,-12858.83755207,0.00028,2]
[367131853,1750665086384,-257.17675104,0.00028,2]
[367131854,1750665086395,-1377.767394,0.00028,60]
[367131855,1750665086404,-274.201128,0.00028,60]
[367131856,1750665086414,-557.888228,0.00028,60]
[367131857,1750665086423,-1023.415015,0.00028,60]
[367131858,1750665086433,-474.776902,0.00028,60]
[367131859,1750665086443,-891.687631,0.00028,60]
[367131860,1750665086453,-249.97348,0.00028,60]
[367131861,1750665086462,-416.571639,0.00028,60]
[367131862,1750665086471,-242.559426,0.00028,60]
[367131863,1750665086481,-855.377466,0.00028,60]
[367131864,1750665086491,-378.915759,0.00028,60]
[367131865,1750665086501,-235.877232,0.00028,60]
[367131866,1750665086511,-835.56902,0.00028,60]
[367131867,1750665086520,-354.943449,0.00028,60]
[367131868,1750665086530,-227.47019,0.00028,60]
[367131869,1750665086540,-217.265322,0.00028,60]
[367131870,1750665086550,-838.241415,0.00028,60]
[367131871,1750665086560,-354.656765,0.00028,60]
[367131872,1750665086570,-840.927862,0.00028,60]
[367131873,1750665086580,-377.030987,0.00028,60]
[367131874,1750665086589,-212.256098,0.00028,60]
[367131875,1750665086599,-827.411506,0.00028,60]
[367131876,1750665086609,-402.988812,0.00028,60]
[367131877,1750665086618,-212.717281,0.00028,60]
[367131878,1750665086628,-4000.0,0.00028,4]
[367131879,1750665086639,-500.0,0.00028041,7]
[367131880,1750665086649,-500.0,0.00028041,7]
[367131881,1750665086659,-174.61919141,0.00028073,2]
[367131882,1750665086669,-239.84119403,0.00028073,2]
[367131883,1750665086679,-335.55123848,0.00028073,2]
[367131884,1750665086689,-47972.68,0.000281,7]
[367131885,1750665086700,-279.02,0.00028203,2]
[367131886,1750665086709,-300.0,0.00028218,10]
[367131887,1750665086719,-222.65,0.00028218,3]
[367131888,1750665086729,-504.79444097,0.00028218,3]
[367131889,1750665086738,-1069.47,0.00028218,3]
[367131890,1750665086750,-183386.67092948,0.00028219,6]
[367131891,1750665086760,-490.0,0.00028219,3]
[367131892,1750665086770,-490.0,0.00028219,3]
[367131893,1750665086780,-462.65357252,0.00028219,3]
[367131894,1750665086790,-490.0,0.00028219,3]
[367131895,1750665086800,-490.0,0.00028219,3]
[367131896,1750665086810,-490.0,0.00028219,3]
[367131897,1750665086820,-490.0,0.00028219,3]
[367131898,1750665086830,-490.0,0.00028219,3]
[367131899,1750665086840,-490.0,0.00028219,3]
[367131900,1750665086850,-490.0,0.00028219,3]
[367131901,1750665086859,-490.0,0.00028219,3]
[367131902,1750665086869,-500.0,0.00028219,3]
[367131903,1750665086878,-490.0,0.00028219,3]
[367131904,1750665086888,-490.0,0.00028219,3]
[367131905,1750665086898,-356.87215035,0.00028219,3]
[367131906,1750665086907,-490.0,0.00028219,3]
[367131907,1750665086917,-490.0,0.00028219,3]
[367131908,1750665086930,-490.0,0.00028219,3]
[367131909,1750665086940,-490.0,0.00028219,3]
[367131910,1750665086949,-490.0,0.00028219,3]
[367131911,1750665086959,-490.0,0.00028219,3]
[367131912,1750665086969,-490.0,0.00028219,3]
[367131913,1750665086980,-491.56777761,0.00028219,3]
[367131914,1750665086990,-490.0,0.00028219,3]
[367131915,1750665087000,-490.0,0.00028219,3]
[367131916,1750665087010,-490.0,0.00028219,3]
[367131917,1750665087022,-490.0,0.00028219,3]
[367131918,1750665087031,-490.0,0.00028219,3]
[367131919,1750665087041,-490.0,0.00028219,3]
[367131920,1750665087052,-490.0,0.00028219,3]
[367131921,1750665087063,-490.0,0.00028219,3]
[367131922,1750665087073,-603.39619157,0.00028219,3]
[367131923,1750665087084,-490.0,0.00028219,3]
[367131924,1750665087094,-490.0,0.00028219,3]
[367131925,1750665087103,-490.0,0.00028219,3]
[367131926,1750665087113,-490.0,0.00028219,3]
[367131927,1750665087123,-490.0,0.00028219,3]
[367131928,1750665087133,-490.0,0.00028219,3]
[367131929,1750665087143,-490.0,0.00028219,3]
[367131930,1750665087153,-490.0,0.00028219,3]
[367131931,1750665087163,-490.0,0.00028219,3]
[367131932,1750665087173,-490.0,0.00028219,3]
[367131933,1750665087183,-490.0,0.00028219,3]
[367131934,1750665087193,-927.67,0.00028219,3]
[367131935,1750665087203,-490.0,0.00028219,3]
[367131936,1750665087213,-490.0,0.00028219,3]
[367131937,1750665087223,-490.0,0.00028219,3]
[367131938,1750665087233,-490.0,0.00028219,3]
[367131939,1750665087243,-1000.0,0.00028219,3]
[367131940,1750665087253,-490.0,0.00028219,3]
[367131941,1750665087263,-490.0,0.00028219,3]
[367131942,1750665087272,-490.0,0.00028219,3]
[367131943,1750665087282,-490.0,0.00028219,3]
[367131944,1750665087291,-490.0,0.00028219,3]
[367131945,1750665087301,-490.0,0.00028219,3]
[367131946,1750665087311,-668.01,0.00028219,3]
[367131947,1750665087321,-490.0,0.00028219,3]
[367131948,1750665087330,-490.0,0.00028219,3]
[367131949,1750665087340,-490.0,0.00028219,3]
[367131950,1750665087350,-712.2,0.00028219,3]
[367131951,1750665087359,-490.0,0.00028219,3]
[367131952,1750665087368,-490.0,0.00028219,3]
[367131953,1750665087378,-598.16,0.00028219,3]
[367131954,1750665087388,-490.0,0.00028219,3]
[367131955,1750665087398,-708.42,0.00028219,3]
[367131956,1750665087408,-904.35,0.00028219,3]
[367131957,1750665087418,-468.68329171,0.00028219,3]
[367131958,1750665087428,-490.0,0.00028219,3]
[367131959,1750665087440,-490.0,0.00028219,3]
[367131960,1750665087450,-490.0,0.00028219,3]
[367131961,1750665087459,-490.0,0.00028219,3]
[367131962,1750665087469,-490.0,0.00028219,3]
[367131963,1750665087479,-490.0,0.00028219,3]
[367131964,1750665087488,-490.0,0.00028219,3]
[367131965,1750665087498,-490.0,0.00028219,3]
[367131966,1750665087507,-490.0,0.00028219,3]
[367131967,1750665087517,-936.53,0.00028219,3]
[367131968,1750665087527,-490.0,0.00028219,3]
[367131969,1750665087536,-490.0,0.00028219,3]
[367131970,1750665087545,-490.0,0.00028219,3]
[367131971,1750665087555,-490.0,0.00028219,3]
[367131972,1750665087564,-490.0,0.00028219,3]
[367131973,1750665087574,-490.0,0.00028219,3]
[367131974,1750665087583,-490.0,0.00028219,3]
[367131975,1750665087592,-490.0,0.00028219,3]
[367131976,1750665087601,-490.0,0.00028219,3]
[367131977,1750665087611,-898.51,0.00028219,3]
[367131978,1750665087620,-934.07,0.00028219,3]
[367131979,1750665087629,-490.0,0.00028219,3]
[367131980,1750665087639,-490.0,0.00028219,3]
[367131981,1750665087648,-490.0,0.00028219,3]
[367131982,1750665087659,-1055.8,0.00028219,3]
[367131983,1750665087668,-490.0,0.00028219,3]
[367131984,1750665087677,-490.0,0.00028219,3]
[367131985,1750665087687,-501.90227007,0.00028219,3]
[367131986,1750665087697,-511.53,0.00028219,3]
[367131987,1750665087706,-490.0,0.00028219,3]
[367131988,1750665087716,-490.0,0.00028219,3]
[367131989,1750665087725,-490.0,0.00028219,3]
[367131990,1750665087735,-490.0,0.00028219,3]
[367131991,1750665087746,-490.0,0.00028219,3]
[367131992,1750665087755,-490.0,0.00028219,3]
[367131993,1750665087765,-325.06996461,0.00028219,3]
[367131994,1750665087774,-600.83,0.00028219,3]
[367131995,1750665087784,-490.0,0.00028219,3]
[367131996,1750665087793,-490.0,0.00028219,3]
[367131997,1750665087802,-490.0,0.00028219,3]
[367131998,1750665087812,-588.13,0.00028219,3]
[367131999,1750665087821,-490.0,0.00028219,3]
[367132000,1750665087831,-490.0,0.00028219,3]
[367132001,1750665087840,-490.0,0.00028219,3]
[367132002,1750665087850,-490.0,0.00028219,3]
[367132003,1750665087860,-490.0,0.00028219,3]
[367132004,1750665087870,-852.34,0.00028219,3]
[367132005,1750665087879,-222.25288798,0.00028219,3]
[367132006,1750665087889,-490.0,0.00028219,3]
[367132007,1750665087898,-490.0,0.00028219,3]
[367132008,1750665087908,-490.0,0.00028219,3]
[367132009,1750665087918,-490.0,0.00028219,3]
[367132010,1750665087929,-490.0,0.00028219,3]
[367132011,1750665087939,-972.8,0.00028219,3]
[367132012,1750665087949,-490.0,0.00028219,3]
[367132013,1750665087959,-495.99254081,0.00028219,3]
[367132014,1750665087969,-490.0,0.00028219,3]
[367132015,1750665087979,-613.97,0.00028219,3]
[367132016,1750665087988,-490.0,0.00028219,3]
[367132017,1750665087998,-490.0,0.00028219,3]
[367132018,1750665088010,-490.0,0.00028219,3]
[367132019,1750665088020,-371.96290011,0.00028219,3]
[367132020,1750665088030,-490.0,0.00028219,3]
[367132021,1750665088039,-490.0,0.00028219,3]
[367132022,1750665088049,-490.0,0.00028219,3]
[367132023,1750665088058,-490.0,0.00028219,3]
[367132024,1750665088068,-297.78112939,0.00028219,3]
[367132025,1750665088077,-490.0,0.00028219,3]
[367132026,1750665088087,-490.0,0.00028219,3]
[367132027,1750665088097,-490.0,0.00028219,3]
[367132028,1750665088107,-490.0,0.00028219,3]
[367132029,1750665088116,-490.0,0.00028219,3]
[367132030,1750665088125,-490.0,0.00028219,3]
[367132031,1750665088135,-520.43120679,0.00028219,3]
[367132032,1750665088144,-490.0,0.00028219,3]
[367132033,1750665088154,-490.0,0.00028219,3]
[367132034,1750665088163,-490.0,0.00028219,3]
[367132035,1750665088172,-490.0,0.00028219,3]
[367132036,1750665088182,-490.0,0.00028219,3]
[367132037,1750665088191,-490.0,0.00028219,3]
[367132038,1750665088201,-490.0,0.00028219,3]
[367132039,1750665088210,-490.0,0.00028219,3]
[367132040,1750665088220,-950.12,0.00028219,3]
[367132041,1750665088229,-296.26416167,0.00028219,3]
[367132042,1750665088239,-490.0,0.00028219,3]
[367132043,1750665088248,-238.03665234,0.00028219,3]
[367132044,1750665088257,-490.0,0.00028219,3]
[367132045,1750665088267,-490.0,0.00028219,3]
[367132046,1750665088277,-490.0,0.00028219,3]
[367132047,1750665088286,-732.25,0.00028219,3]
[367132048,1750665088296,-678.97,0.00028219,3]
[367132049,1750665088305,-490.0,0.00028219,3]
[367132050,1750665088316,-490.0,0.00028219,3]
[367132051,1750665088325,-490.0,0.00028219,3]
[367132052,1750665088334,-838.48,0.00028219,3]
[367132053,1750665088344,-490.0,0.00028219,3]
[367132054,1750665088353,-699.02,0.00028219,3]
[367132055,1750665088448,-490.0,0.00028219,3]
[367132056,1750665088458,-564.25,0.00028219,3]
[367132057,1750665088467,-490.0,0.00028219,3]
[367132058,1750665088476,-1071.68,0.00028219,3]
[367132059,1750665088485,-490.0,0.00028219,3]
[367132060,1750665088495,-490.0,0.00028219,3]
[367132061,1750665088504,-699.34,0.00028219,3]
[367132062,1750665088513,-662.89,0.00028219,3]
[367132063,1750665088523,-564.94,0.00028219,3]
[367132064,1750665088532,-583.00483968,0.00028219,3]
[367132065,1750665088542,-490.0,0.00028219,3]
[367132066,1750665088551,-490.0,0.00028219,3]
[367132067,1750665088560,-490.0,0.00028219,3]
[367132068,1750665088570,-490.0,0.00028219,3]
[367132069,1750665088579,-1230.15,0.00028219,3]
[367132070,1750665088589,-490.0,0.00028219,3]
[367132071,1750665088598,-490.0,0.00028219,3]
[367132072,1750665088607,-582.52,0.00028219,3]
[367132073,1750665088617,-267.33544532,0.00028219,3]
[367132074,1750665088627,-490.0,0.00028219,3]
[367132075,1750665088636,-943.42,0.00028219,3]
[367132076,1750665088646,-490.0,0.00028219,3]
[367132077,1750665088655,-999.65,0.00028219,3]
[367132078,1750665088664,-490.0,0.00028219,3]
[367132079,1750665088673,-490.0,0.00028219,3]
[367132080,1750665088683,-490.0,0.00028219,3]
[367132081,1750665088692,-490.0,0.00028219,3]
[367132082,1750665088701,-490.0,0.00028219,3]
[367132083,1750665088710,-490.0,0.00028219,3]
[367132084,1750665088720,-490.0,0.00028219,3]
[367132085,1750665088729,-490.0,0.00028219,3]
[367132086,1750665088739,-490.0,0.00028219,3]
[367132087,1750665088748,-1066.85,0.00028219,3]
[367132088,1750665088758,-1100.39,0.00028219,3]
[367132089,1750665088767,-490.0,0.00028219,3]
[367132090,1750665088776,-629.46,0.00028219,3]
[367132091,1750665088785,-490.0,0.00028219,3]
[367132092,1750665088795,-620.31,0.00028219,3]
[367132093,1750665088805,-834.77,0.00028219,3]
[367132094,1750665088815,-490.0,0.00028219,3]
[367132095,1750665088824,-861.89,0.00028219,3]
[367132096,1750665088833,-490.0,0.00028219,3]
[367132097,1750665088843,-500.99,0.00028219,3]
[367132098,1750665088852,-629.12,0.00028219,3]
[367132099,1750665088861,-1274.6,0.00028219,3]
[367132100,1750665088870,-1305.62,0.00028219,3]
[367132101,1750665088880,-557.46,0.00028219,3]
[367132102,1750665088889,-490.0,0.00028219,3]
[367132103,1750665088900,-774.41,0.00028219,3]
[367132104,1750665088909,-549.68,0.00028219,3]
[367132105,1750665088918,-490.0,0.00028219,3]
[367132106,1750665088929,-630.81,0.00028219,3]
[367132107,1750665088940,-1051.6,0.00028219,3]
[367132108,1750665088949,-490.0,0.00028219,3]
[367132109,1750665088958,-559.89,0.00028219,3]
[367132110,1750665088968,-1923.63,0.00028219,3]
[367132111,1750665088978,-490.0,0.00028219,3]
[367132112,1750665088988,-490.0,0.00028219,3]
[367132113,1750665088997,-574.93,0.00028219,3]
[367132114,1750665089008,-513.32720314,0.00028219,3]
[367132115,1750665089017,-490.0,0.00028219,3]
[367132116,1750665089026,-490.0,0.00028219,3]
[367132117,1750665089035,-1572.34,0.00028219,3]
[367132118,1750665089044,-490.0,0.00028219,3]
[367132119,1750665089053,-490.0,0.00028219,3]
[367132120,1750665089062,-490.0,0.00028219,3]
[367132121,1750665089071,-682.57,0.00028219,3]
[367132122,1750665089080,-490.0,0.00028219,3]
[367132123,1750665089089,-1697.22,0.00028219,3]
[367132124,1750665089099,-490.0,0.00028219,3]
[367132125,1750665089109,-563.39403507,0.00028219,3]
[367132126,1750665089118,-490.0,0.00028219,3]
[367132127,1750665089128,-880.29,0.00028219,3]
[367132128,1750665089137,-490.0,0.00028219,3]
[367132129,1750665089147,-1269.91,0.00028219,3]
[367132130,1750665089156,-710.25,0.00028219,3]
[367132131,1750665089166,-490.0,0.00028219,3]
[367132132,1750665089176,-813.4,0.00028219,3]
[367132133,1750665089186,-467.31240166,0.00028219,3]
[367132134,1750665089196,-2095.98,0.00028219,3]
[367132135,1750665089205,-490.0,0.00028219,3]
[367132136,1750665089216,-159.31332,0.00028219,7]
[367132137,1750665089225,-860.56,0.00028219,3]
[367132138,1750665089235,-490.0,0.00028219,3]
[367132139,1750665089243,-1189.08,0.00028219,3]
[367132140,1750665089253,-153.28363812,0.00028219,3]
[367132141,1750665089262,-490.0,0.00028219,3]
[367132142,1750665089271,-592.68,0.00028219,3]
[367132143,1750665089281,-490.0,0.00028219,3]
[367132144,1750665089290,-490.0,0.00028219,3]
[367132145,1750665089300,-693.19,0.00028219,2]
[367132146,1750665089309,-1404.19,0.00028219,3]
[367132147,1750665089318,-490.0,0.00028219,3]
[367132148,1750665089327,-490.0,0.00028219,3]
[367132149,1750665089337,-490.0,0.00028219,3]
[367132150,1750665089346,-1041.14,0.00028219,3]
[367132151,1750665089357,-490.0,0.00028219,3]
[367132152,1750665089366,-1153.44,0.00028219,3]
[367132153,1750665089375,-562.57,0.00028219,3]
[367132154,1750665089384,-490.0,0.00028219,3]
[367132155,1750665089395,-160.15541214,0.00028219,3]
[367132156,1750665089404,-490.0,0.00028219,3]
[367132157,1750665089413,-1104.92,0.00028219,3]
[367132158,1750665089422,-490.0,0.00028219,3]
[367132159,1750665089432,-1408.6,0.00028219,3]
[367132160,1750665089444,-490.0,0.00028219,3]
[367132161,1750665089454,-514.46301292,0.00028219,3]
[367132162,1750665089464,-490.0,0.00028219,3]
[367132163,1750665089474,-490.0,0.00028219,3]
[367132164,1750665089485,-1311.06,0.00028219,3]
[367132165,1750665089494,-490.0,0.00028219,3]
[367132166,1750665089504,-490.0,0.00028219,2]
[367132167,1750665089514,-490.0,0.00028219,3]
[367132168,1750665089524,-1143.07,0.00028219,3]
[367132169,1750665089533,-490.0,0.00028219,3]
[367132170,1750665089543,-1915.03,0.00028219,3]
[367132171,1750665089552,-490.0,0.00028219,3]
[367132172,1750665089562,-490.0,0.00028219,3]
[367132173,1750665089571,-1096.22,0.00028219,3]
[367132174,1750665089581,-1133.12,0.00028219,3]
[367132175,1750665089590,-763.88,0.00028219,3]
[367132176,1750665089599,-623.87477456,0.00028219,3]
[367132177,1750665089609,-151.0,0.00028219,7]
[367132178,1750665089619,-490.0,0.00028219,3]
[367132179,1750665089629,-1026.56,0.00028219,3]
[367132180,1750665089638,-490.0,0.00028219,3]
[367132181,1750665089647,-490.0,0.00028219,3]
[367132182,1750665089657,-1230.65,0.00028219,3]
[367132183,1750665089667,-1008.53,0.00028219,3]
[367132184,1750665089677,-490.0,0.00028219,3]
[367132185,1750665089686,-300.0,0.00028219,3]
[367132186,1750665089695,-1722.2,0.00028219,3]
[367132187,1750665089705,-1588.78,0.00028219,3]
[367132188,1750665089714,-523.25327982,0.00028219,3]
[367132189,1750665089724,-490.0,0.00028219,3]
[367132190,1750665089734,-490.0,0.00028219,3]
[367132191,1750665089743,-490.0,0.00028219,3]
[367132192,1750665089753,-896.42,0.00028219,3]
[367132193,1750665089762,-961.21,0.00028219,3]
[367132194,1750665089772,-490.0,0.00028219,3]
[367132195,1750665089782,-490.0,0.00028219,3]
[367132196,1750665089791,-490.0,0.00028219,3]
[367132197,1750665089800,-633.05,0.00028219,3]
[367132198,1750665089809,-1367.92,0.00028219,3]
[367132199,1750665089818,-490.0,0.00028219,3]
[367132200,1750665089827,-844.81,0.00028219,3]
[367132201,1750665089836,-542.77,0.00028219,3]
[367132202,1750665089845,-611.73,0.00028219,3]
[367132203,1750665089854,-490.0,0.00028219,3]
[367132204,1750665089864,-807.21,0.00028219,3]
[367132205,1750665089873,-490.0,0.00028219,3]
[367132206,1750665089882,-151.0,0.00028219,7]
[367132207,1750665089892,-956.99,0.00028219,3]
[367132208,1750665089901,-1617.12,0.00028219,3]
[367132209,1750665089911,-151.0,0.00028219,7]
[367132210,1750665089920,-490.0,0.00028219,3]
[367132211,1750665089934,-490.0,0.00028219,3]
[367132212,1750665089943,-490.0,0.00028219,3]
[367132213,1750665089952,-519.34,0.00028219,3]
[367132214,1750665089961,-848.71,0.00028219,3]
[367132215,1750665089971,-790.76,0.00028219,3]
[367132216,1750665089981,-613.34,0.00028219,3]
[367132217,1750665089990,-742.62,0.00028219,3]
[367132218,1750665089999,-2760.23,0.00028219,3]
[367132219,1750665090009,-2345.46,0.00028219,2]
[367132220,1750665090019,-490.0,0.00028219,3]
[367132221,1750665090028,-1288.97,0.00028219,3]
[367132222,1750665090037,-1422.0,0.00028219,3]
[367132223,1750665090046,-151.0,0.00028219,7]
[367132224,1750665090055,-1019.17,0.00028219,3]
[367132225,1750665090064,-1327.38,0.00028219,3]
[367132226,1750665090073,-490.0,0.00028219,3]
[367132227,1750665090082,-152.147211,0.00028219,7]
[367132228,1750665090091,-608.9,0.00028219,3]
[367132229,1750665090101,-490.0,0.00028219,3]
[367132230,1750665090110,-1180.83,0.00028219,3]
[367132231,1750665090119,-490.0,0.00028219,3]
[367132232,1750665090128,-151.567758,0.00028219,7]
[367132233,1750665090137,-490.0,0.00028219,3]
[367132234,1750665090147,-490.0,0.00028219,3]
[367132235,1750665090157,-692.81,0.00028219,3]
[367132236,1750665090166,-490.0,0.00028219,3]
[367132237,1750665090175,-490.0,0.00028219,3]
[367132238,1750665090185,-490.0,0.00028219,3]
[367132239,1750665090193,-778.5,0.00028219,3]
[367132240,1750665090203,-490.0,0.00028219,3]
[367132241,1750665090213,-1065.89,0.00028219,3]
[367132242,1750665090223,-665.43,0.00028219,3]
[367132243,1750665090231,-637.7,0.00028219,3]
[367132244,1750665090245,-490.0,0.00028219,3]
[367132245,1750665090255,-490.0,0.00028219,3]
[367132246,1750665090266,-1166.57,0.00028219,3]
[367132247,1750665090276,-625.83,0.00028219,3]
[367132248,1750665090287,-1508.28,0.00028219,3]
[367132249,1750665090298,-526.99,0.00028219,3]
[367132250,1750665090308,-153.334794,0.00028219,7]
[367132251,1750665090317,-613.21,0.00028219,3]
[367132252,1750665090327,-1559.17,0.00028219,3]
[367132253,1750665090339,-490.0,0.00028219,3]
[367132254,1750665090350,-151.0,0.00028219,7]
[367132255,1750665090360,-610.21,0.00028219,3]
[367132256,1750665090370,-714.94,0.00028219,3]
[367132257,1750665090380,-963.94,0.00028219,3]
[367132258,1750665090390,-868.65,0.00028219,3]
[367132259,1750665090400,-490.0,0.00028219,3]
[367132260,1750665090410,-1081.49,0.00028219,3]
[367132261,1750665090421,-490.0,0.00028219,3]
[367132262,1750665090431,-566.45,0.00028219,3]
[367132263,1750665090440,-1232.32,0.00028219,3]
[367132264,1750665090450,-1100.0,0.00028219,3]
[367132265,1750665090459,-1694.0,0.00028219,3]
[367132266,1750665090468,-490.0,0.00028219,3]
[367132267,1750665090479,-490.0,0.00028219,3]
[367132268,1750665090490,-1228.14,0.00028219,3]
[367132269,1750665090499,-490.0,0.00028219,3]
[367132270,1750665090511,-818.43,0.00028219,3]
[367132271,1750665090521,-490.0,0.00028219,3]
[367132272,1750665090531,-490.0,0.00028219,3]
[367132273,1750665090540,-835.03,0.00028219,3]
[367132274,1750665090550,-551.94,0.00028219,3]
[367132275,1750665090559,-490.0,0.00028219,3]
[367132276,1750665090568,-490.0,0.00028219,3]
[367132277,1750665090577,-152.35350087,0.00028219,3]
[367132278,1750665090586,-500.50254454,0.00028219,3]
[367132279,1750665090596,-1222.96,0.00028219,3]
[367132280,1750665090605,-490.0,0.00028219,3]
[367132281,1750665090614,-490.0,0.00028219,3]
[367132282,1750665090624,-490.0,0.00028219,3]
[367132283,1750665090634,-490.0,0.00028219,3]
[367132284,1750665090644,-880.33,0.00028219,3]
[367132285,1750665090654,-490.0,0.00028219,3]
[367132286,1750665090664,-1308.03,0.00028219,3]
[367132287,1750665090673,-490.0,0.00028219,3]
[367132288,1750665090682,-490.0,0.00028219,3]
[367132289,1750665090692,-749.38,0.00028219,3]
[367132290,1750665090702,-490.0,0.00028219,3]
[367132291,1750665090712,-487.25360427,0.00028219,3]
[367132292,1750665090721,-906.2,0.00028219,3]
[367132293,1750665090730,-632.2,0.00028219,3]
[367132294,1750665090740,-736.07,0.00028219,3]
[367132295,1750665090750,-490.0,0.00028219,3]
[367132296,1750665090759,-327.2059935,0.00028219,3]
[367132297,1750665090768,-1159.93,0.00028219,3]
[367132298,1750665090777,-490.0,0.00028219,3]
[367132299,1750665090787,-490.0,0.00028219,3]
[367132300,1750665090797,-717.88,0.00028219,3]
[367132301,1750665090806,-490.0,0.00028219,3]
[367132302,1750665090817,-490.0,0.00028219,3]
[367132303,1750665090826,-793.46,0.00028219,3]
[367132304,1750665090836,-490.0,0.00028219,3]
[367132305,1750665090846,-490.0,0.00028219,3]
[367132306,1750665090855,-1185.89,0.00028219,3]
[367132307,1750665090864,-490.0,0.00028219,3]
[367132308,1750665090874,-1745.89,0.00028219,3]
[367132309,1750665090884,-490.0,0.00028219,3]
[367132310,1750665090894,-1156.86,0.00028219,3]
[367132311,1750665090904,-991.3,0.00028219,3]
[367132312,1750665090913,-490.0,0.00028219,3]
[367132313,1750665090923,-193.30272132,0.00028219,3]
[367132314,1750665090936,-490.0,0.00028219,3]
[367132315,1750665090946,-490.0,0.00028219,3]
[367132316,1750665090955,-490.0,0.00028219,3]
[367132317,1750665090964,-648.95,0.00028219,3]
[367132318,1750665090974,-815.02,0.00028219,3]
[367132319,1750665090983,-830.59,0.00028219,3]
[367132320,1750665090992,-490.0,0.00028219,3]
[367132321,1750665091002,-490.0,0.00028219,3]
[367132322,1750665091012,-1055.32,0.00028219,3]
[367132323,1750665091021,-490.0,0.00028219,3]
[367132324,1750665091030,-490.0,0.00028219,3]
[367132325,1750665091040,-599.34,0.00028219,3]
[367132326,1750665091049,-1112.63,0.00028219,3]
[367132327,1750665091059,-490.0,0.00028219,3]
[367132328,1750665091068,-490.0,0.00028219,3]
[367132329,1750665091078,-1313.29,0.00028219,3]
[367132330,1750665091087,-573.3,0.00028219,3]
[367132331,1750665091097,-490.0,0.00028219,3]
[367132332,1750665091106,-546.93,0.00028219,3]
[367132333,1750665091115,-325.85590902,0.00028219,3]
[367132334,1750665091125,-878.57,0.00028219,3]
[367132335,1750665091134,-1631.12,0.00028219,3]
[367132336,1750665091143,-490.0,0.00028219,3]